fUSD/lending_fUSD_20241002
["ID","MTS","AMOUNT","RATE_DAILY","PERIOD"]
[339690676,1727869849864,-575.05,0.00021917,2]
[339690678,1727869849873,-812.97,0.00021917,2]
[339690680,1727869849883,-1574.1,0.00021917,2]
[339690682,1727869849893,-993.91,0.00021917,2]
[339690684,1727869849903,-573.24422864,0.00021917,2]
[339690686,1727869849919,-1526.73,0.00021917,2]
[339690688,1727869849928,-500.0,0.00021917,2]
[339690690,1727869849938,-1049.52,0.00021917,2]
[339690691,1727869849947,-500.0,0.00021917,2]
[339690693,1727869849959,-500.0,0.00021917,2]
[339690695,1727869849968,-500.0,0.00021917,2]
[339690698,1727869849983,-1970.75,0.00021917,2]
[339690699,1727869849992,-500.0,0.00021917,2]
[339690702,1727869850003,-500.0,0.00021917,2]
[339690703,1727869850012,-500.0,0.00021917,2]
[339690704,1727869850022,-518.95,0.00021917,2]
[339690706,1727869850031,-3520.63,0.00021917,2]
[339690708,1727869850041,-530.32,0.00021917,2]
[339690710,1727869850050,-1403.56,0.00021917,2]
[339690712,1727869850060,-500.0,0.00021917,2]
[339690714,1727869850069,-500.0,0.00021917,2]
[339690716,1727869850079,-500.0,0.00021917,2]
[339690718,1727869850088,-1522.21,0.00021917,2]
[339690719,1727869850097,-500.0,0.00021917,2]
[339690721,1727869850107,-3091.29,0.00021917,2]
[339690723,1727869850118,-500.0,0.00021917,2]
[339690725,1727869850128,-500.0,0.00021917,2]
[339690727,1727869850138,-1354.75,0.00021917,2]
[339690729,1727869850148,-583.64436832,0.00021917,2]
[339690730,1727869850158,-500.0,0.00021917,2]
[339690732,1727869850167,-500.0,0.00021917,2]
[339690734,1727869850177,-500.0,0.00021917,2]
[339690736,1727869850186,-988.48,0.00021917,2]
[339690738,1727869850197,-711.34,0.00021917,2]
[339690741,1727869850208,-825.42,0.00021917,2]
[339690743,1727869850218,-876.88,0.00021917,2]
[339690744,1727869850228,-1618.37,0.00021917,2]
[339690746,1727869850237,-833.27,0.00021917,2]
[339690748,1727869850247,-5815.04,0.00021917,2]
[339690750,1727869850257,-500.0,0.00021917,2]
[339690752,1727869850266,-1031.29,0.00021917,2]
[339690754,1727869850276,-500.0,0.00021917,2]
[339690756,1727869850285,-500.0,0.00021917,2]
[339690758,1727869850295,-1965.03,0.00021917,2]
[339690760,1727869850305,-3064.09,0.00021917,2]
[339690762,1727869850314,-500.0,0.00021917,2]
[339690770,1727869850475,-4974.41,0.00021917,2]
[339690771,1727869850496,-844.64,0.00021917,2]
[339690772,1727869850506,-823.54,0.00021917,2]
[339690773,1727869850516,-1132.69,0.00021917,2]
[339690774,1727869850526,-2331.34,0.00021917,2]
[339690775,1727869850535,-552.96,0.00021917,2]
[339690776,1727869850545,-500.0,0.00021917,2]
[339690777,1727869850554,-1148.88,0.00021917,2]
[339690778,1727869850564,-2974.28,0.00021917,2]
[339690779,1727869850573,-500.0,0.00021917,2]
[339690780,1727869850583,-968.97,0.00021917,2]
[339690781,1727869850593,-3001.6,0.00021917,2]
[339690782,1727869850603,-500.0,0.00021917,2]
[339690783,1727869850613,-500.0,0.00021917,2]
[339690784,1727869850623,-500.0,0.00021917,2]
[339690785,1727869850632,-500.0,0.00021917,2]
[339690786,1727869850642,-1264.99,0.00021917,2]
[339690787,1727869850651,-151.0,0.00021917,2]
[339690788,1727869850661,-151.0,0.00021917,2]
[339690789,1727869850670,-151.0,0.00021917,2]
[339690790,1727869850680,-500.0,0.00021917,2]
[339690791,1727869850689,-151.0,0.00021917,2]
[339690792,1727869850699,-726.05,0.00021917,2]
[339690793,1727869850709,-500.0,0.00021917,2]
[339690794,1727869850718,-3619.58,0.00021917,2]
[339690795,1727869850728,-500.0,0.00021917,2]
[339690796,1727869850737,-151.0,0.00021917,2]
[339690797,1727869850748,-1051.14,0.00021917,2]
[339690798,1727869850757,-604.79,0.00021917,2]
[339690799,1727869850766,-500.0,0.00021917,2]
[339690800,1727869850776,-3602.22,0.00021917,2]
[339690801,1727869850785,-1390.28,0.00021917,2]
[339690802,1727869850795,-2687.13,0.00021917,2]
[339690803,1727869850804,-151.0,0.00021917,2]
[339690804,1727869850814,-12090.42,0.00021917,2]
[339690805,1727869850823,-151.0,0.00021917,2]
[339690806,1727869850833,-1118.51,0.00021917,2]
[339690807,1727869850842,-5879.71,0.00021917,2]
[339690808,1727869850852,-241.44121,0.00021917,2]
[339690809,1727869850861,-500.0,0.00021917,2]
[339690810,1727869850871,-500.0,0.00021917,2]
[339690811,1727869850880,-526.33,0.00021917,2]
[339690812,1727869850890,-500.0,0.00021917,2]
[339690813,1727869850900,-816.38,0.00021917,2]
[339690814,1727869850912,-500.0,0.00021917,2]
[339690815,1727869850923,-1959.33,0.00021917,2]
[339690816,1727869850933,-4254.33,0.00021917,2]
[339690817,1727869850942,-4061.83,0.00021917,2]
[339690818,1727869850952,-500.0,0.00021917,2]
[339690819,1727869850962,-1345.45,0.00021917,2]
[339690820,1727869850994,-500.0,0.00021917,2]
[339690821,1727869851004,-500.0,0.00021917,2]
[339690822,1727869851013,-1447.78,0.00021917,2]
[339690823,1727869851022,-500.0,0.00021917,2]
[339690824,1727869851032,-1075.93,0.00021917,2]
[339690825,1727869851042,-500.0,0.00021917,2]
[339690826,1727869851052,-1481.56,0.00021917,2]
[339690827,1727869851062,-519.77,0.00021917,2]
[339690828,1727869851072,-500.0,0.00021917,2]
[339690829,1727869851081,-500.0,0.00021917,2]
[339690830,1727869851091,-4444.78,0.00021917,2]
[339690831,1727869851100,-1469.09,0.00021917,2]
[339690832,1727869851110,-626.6,0.00021917,2]
[339690833,1727869851120,-2996.05,0.00021917,2]
[339690834,1727869851130,-3273.31,0.00021917,2]
[339690835,1727869851139,-500.0,0.00021917,2]
[339690836,1727869851149,-500.0,0.00021917,2]
[339690837,1727869851159,-544.28746649,0.00021917,2]
[339690838,1727869851168,-613.77,0.00021917,2]
[339690839,1727869851177,-500.0,0.00021917,2]
[339690840,1727869851187,-500.0,0.00021917,2]
[339690841,1727869851197,-500.0,0.00021917,2]
[339690842,1727869851211,-958.03,0.00021917,2]
[339690843,1727869851220,-500.0,0.00021917,2]
[339690844,1727869851231,-707.05,0.00021917,2]
[339690845,1727869851240,-500.0,0.00021917,2]
[339690846,1727869851250,-188.834547,0.00021917,2]
[339690847,1727869851260,-500.0,0.00021917,2]
[339690848,1727869851270,-500.0,0.00021917,2]
[339690849,1727869851280,-442.11324217,0.00021917,2]
[339690850,1727869851290,-3800.36,0.00021917,2]
[339690851,1727869851300,-528.33,0.00021917,2]
[339690852,1727869851310,-500.0,0.00021917,2]
[339690853,1727869851320,-10132.33,0.00021917,2]
[339690854,1727869851330,-221.24470553,0.00021917,2]
[339690855,1727869851340,-888.35,0.00021917,2]
[339690856,1727869851351,-1216.89,0.00021917,2]
[339690857,1727869851361,-500.0,0.00021917,2]
[339690858,1727869851374,-542.56,0.00021917,2]
[339690859,1727869851384,-500.0,0.00021917,2]
[339690860,1727869851394,-1117.3,0.00021917,2]
[339690861,1727869851404,-1033.85,0.00021917,2]
[339690862,1727869851414,-1287.56,0.00021917,2]
[339690863,1727869851424,-500.0,0.00021917,2]
[339690864,1727869851435,-6495.52,0.00021917,2]
[339690865,1727869851445,-1020.29,0.00021917,2]
[339690866,1727869851456,-500.0,0.00021917,2]
[339690867,1727869851466,-265.82982562,0.00021917,2]
[339690868,1727869851476,-3352.77,0.00021917,2]
[339690869,1727869851486,-3430.38,0.00021917,2]
[339690870,1727869851496,-500.0,0.00021917,2]
[339690871,1727869851507,-500.0,0.00021917,2]
[339690872,1727869851516,-1117.24,0.00021917,2]
[339690873,1727869851527,-500.0,0.00021917,2]
[339690874,1727869851539,-500.0,0.00021917,2]
[339690875,1727869851549,-1132.56,0.00021917,2]
[339690876,1727869851561,-880.57,0.00021917,2]
[339690877,1727869851571,-707.2,0.00021917,2]
[339690878,1727869851580,-3228.99,0.00021917,2]
[339690879,1727869851590,-502.16,0.00021917,2]
[339690880,1727869851600,-500.0,0.00021917,2]
[339690881,1727869851611,-682.74,0.00021917,2]
[339690882,1727869851621,-738.51,0.00021917,2]
[339690883,1727869851631,-500.0,0.00021917,2]
[339690884,1727869851642,-968.42,0.00021917,2]
[339690885,1727869851652,-500.0,0.00021917,2]
[339690886,1727869851662,-1406.54,0.00021917,2]
[339690887,1727869851672,-2448.54,0.00021917,2]
[339690888,1727869851682,-500.0,0.00021917,2]
[339690889,1727869851691,-848.81,0.00021917,2]
[339690890,1727869851701,-1709.53,0.00021917,2]
[339690891,1727869851711,-500.0,0.00021917,2]
[339690892,1727869851722,-500.0,0.00021917,2]
[339690893,1727869851732,-1553.71,0.00021917,2]
[339690894,1727869851741,-1194.43,0.00021917,2]
[339690895,1727869851753,-628.44,0.00021917,2]
[339690896,1727869851763,-500.0,0.00021917,2]
[339690897,1727869851772,-851.07,0.00021917,2]
[339690898,1727869851782,-409.48,0.00021918,2]
[339690899,1727869851792,-411.05,0.00021918,2]
[339690900,1727869851801,-500.0,0.00021919,2]
[339690901,1727869851811,-577.97555014,0.00021919,2]
[339690902,1727869851821,-500.0,0.00021919,2]
[339690903,1727869851831,-26425.6228937,0.0002193,3]
[339690904,1727869851841,-150.0,0.00021932,4]
[339690905,1727869851850,-500.0,0.0002194,2]
[339690906,1727869851860,-500.0,0.0002194,2]
[339690907,1727869851869,-500.0,0.0002194,2]
[339690908,1727869851878,-452.4232134,0.0002194,2]
[339690909,1727869851889,-500.0,0.0002194,2]
[339690910,1727869851898,-500.0,0.0002194,2]
[339690911,1727869851909,-500.0,0.0002194,2]
[339690912,1727869851921,-500.0,0.0002194,2]
[339690913,1727869851930,-500.0,0.0002194,2]
[339690914,1727869851940,-500.0,0.0002194,2]
[339690915,1727869851951,-500.0,0.0002194,2]
[339690916,1727869851962,-516.33,0.00021941,2]
[339690917,1727869851972,-479.14690184,0.00021949,2]
[339690918,1727869851981,-37204.4928495,0.00021949,3]
[339690919,1727869851991,-26425.6228937,0.00021949,3]
[339690920,1727869852002,-151.0,0.00021949,7]
[339690921,1727869852011,-500.0,0.00021949,2]
[339690922,1727869852021,-500.0,0.00021949,2]
[339690923,1727869852031,-500.0,0.00021949,2]
[339690924,1727869852041,-151.0,0.00021949,7]
[339690925,1727869852051,-500.0,0.00021959,15]
[339690926,1727869852060,-500.0,0.00021959,2]
[339690927,1727869852070,-501.48,0.00021959,2]
[339690928,1727869852079,-500.0,0.00021959,2]
[339690929,1727869852089,-811.94,0.00021959,2]
[339690930,1727869852099,-500.0,0.00021959,2]
[339690931,1727869852108,-500.0,0.00021959,2]
[339690932,1727869852117,-677.94,0.00021959,2]
[339690933,1727869852127,-1158.57,0.00021959,2]
[339690934,1727869852138,-151.0,0.00021959,7]
[339690935,1727869852148,-500.0,0.00021959,2]
[339690936,1727869852158,-500.0,0.00021959,2]
[339690937,1727869852168,-949.49,0.00021959,2]
[339690938,1727869852177,-734.7,0.00021959,2]
[339690939,1727869852187,-500.0,0.00021959,2]
[339690940,1727869852197,-500.0,0.00021959,2]
[339690941,1727869852207,-500.0,0.00021959,2]
[339690942,1727869852217,-500.0,0.00021959,2]
[339690943,1727869852226,-1575.29,0.00021959,2]
[339690944,1727869852236,-582.72,0.00021959,2]
[339690945,1727869852245,-500.0,0.00021959,2]
[339690946,1727869852254,-500.0,0.00021959,2]
[339690947,1727869852263,-533.75848896,0.00021959,2]
[339690948,1727869852273,-626.44,0.00021959,2]
[339690949,1727869852283,-1190.66,0.00021959,2]
[339690950,1727869852292,-2536.33,0.00021959,2]
[339690951,1727869852301,-2331.44,0.00021959,2]
[339690952,1727869852311,-2214.7,0.00021959,2]
[339690953,1727869852321,-500.0,0.00021959,2]
[339690954,1727869852330,-2055.94,0.00021959,2]
[339690955,1727869852340,-500.0,0.00021959,2]
[339690956,1727869852349,-500.0,0.00021959,2]
[339690957,1727869852359,-151.0,0.00021959,7]
[339690958,1727869852368,-500.0,0.00021959,2]
[339690959,1727869852379,-1181.53,0.00021959,2]
[339690960,1727869852388,-500.0,0.00021959,2]
[339690961,1727869852398,-3113.85,0.00021959,2]
[339690962,1727869852408,-500.0,0.00021959,2]
[339690963,1727869852418,-500.0,0.00021959,2]
[339690964,1727869852427,-500.0,0.00021959,2]
[339690965,1727869852437,-500.0,0.00021959,2]
[339690966,1727869852446,-500.0,0.00021959,2]
[339690967,1727869852457,-954.97,0.00021959,2]
[339690968,1727869852467,-627.66085734,0.00021959,2]
[339690969,1727869852476,-3272.25,0.00021959,2]
[339690970,1727869852486,-514.03,0.00021959,2]
[339690971,1727869852496,-500.0,0.00021959,2]
[339690972,1727869852505,-1329.92,0.00021959,2]
[339690973,1727869852515,-2132.25,0.00021959,2]
[339690974,1727869852525,-500.0,0.00021959,2]
[339690975,1727869852535,-3120.51,0.00021959,2]
[339690976,1727869852546,-3249.87,0.00021959,2]
[339690977,1727869852555,-500.0,0.00021959,2]
[339690978,1727869852565,-500.0,0.00021959,2]
[339690979,1727869852574,-1833.21,0.00021959,2]
[339690980,1727869852584,-500.0,0.00021959,2]
[339690981,1727869852594,-26425.6228937,0.00021959,3]
[339690982,1727869852604,-500.0,0.0002196,2]
[339690983,1727869852614,-500.0,0.0002196,2]
[339690984,1727869852623,-500.0,0.0002196,2]
[339690985,1727869852634,-500.0,0.0002196,2]
[339690986,1727869852644,-500.0,0.00021969,2]
[339691009,1727869852982,-615.13,0.00021969,2]
[339691010,1727869852992,-689.3,0.00021969,2]
[339691012,1727869853002,-1015.62,0.00021969,2]
[339691013,1727869853012,-500.0,0.00021969,2]
[339691015,1727869853022,-1202.84,0.00021969,2]
[339691017,1727869853032,-500.0,0.00021969,2]
[339691018,1727869853041,-808.31,0.00021969,2]
[339691020,1727869853050,-1229.27,0.00021969,2]
[339691021,1727869853059,-500.0,0.00021969,2]
[339691023,1727869853069,-711.21,0.00021969,2]
[339691024,1727869853078,-500.0,0.00021969,2]
[339691026,1727869853087,-500.0,0.00021969,2]
[339691028,1727869853097,-1084.12,0.00021969,2]
[339691029,1727869853106,-500.0,0.00021969,2]
[339691031,1727869853116,-500.0,0.00021969,2]
[339691032,1727869853125,-500.0,0.00021969,2]
[339691034,1727869853135,-500.0,0.00021969,2]
[339691036,1727869853145,-920.35,0.00021969,2]
[339691037,1727869853153,-500.0,0.00021969,2]
[339691039,1727869853164,-500.0,0.00021969,2]
[339691041,1727869853173,-722.01,0.00021969,2]
[339691042,1727869853183,-621.72,0.00021969,2]
[339691044,1727869853192,-500.0,0.00021969,2]
[339691045,1727869853201,-1148.26,0.00021969,2]
[339691047,1727869853212,-500.0,0.00021969,2]
[339691049,1727869853221,-1290.73,0.00021969,2]
[339691050,1727869853231,-500.0,0.00021969,2]
[339691052,1727869853241,-500.0,0.00021969,2]
[339691054,1727869853250,-500.0,0.00021969,2]
[339691055,1727869853260,-500.0,0.00021969,2]
[339691057,1727869853269,-567.63,0.00021969,2]
[339691058,1727869853279,-500.0,0.00021969,2]
[339691060,1727869853288,-500.0,0.00021969,2]
[339691061,1727869853297,-500.0,0.00021969,2]
[339691063,1727869853309,-500.0,0.00021969,2]
[339691065,1727869853319,-500.0,0.00021969,2]
[339691066,1727869853329,-1204.46,0.00021969,2]
[339691068,1727869853338,-999.69,0.00021969,2]
[339691069,1727869853347,-1963.92,0.00021969,2]
[339691071,1727869853357,-665.58,0.00021969,2]
[339691073,1727869853367,-500.0,0.00021969,2]
[339691074,1727869853376,-711.49,0.00021969,2]
[339691076,1727869853386,-619.99,0.00021969,2]
[339691077,1727869853396,-590.9,0.00021969,2]
[339691079,1727869853406,-844.29,0.00021969,2]
[339691081,1727869853416,-500.0,0.00021969,2]
[339691082,1727869853427,-801.84,0.00021969,2]
[339691084,1727869853437,-500.0,0.00021969,2]
[339691086,1727869853447,-500.0,0.00021969,2]
[339691087,1727869853458,-500.0,0.00021969,2]
[339691089,1727869853469,-616.35,0.00021969,2]
[339691090,1727869853479,-500.0,0.00021969,2]
[339691092,1727869853489,-1407.55,0.00021969,2]
[339691094,1727869853500,-475.39799287,0.00021969,2]
[339691096,1727869853511,-2264.57,0.00021969,2]
[339691097,1727869853521,-500.0,0.00021969,2]
[339691099,1727869853531,-1920.95,0.00021969,2]
[339691100,1727869853541,-500.0,0.00021969,2]
[339691102,1727869853552,-546.39819796,0.00021969,2]
[339691104,1727869853562,-568.58,0.00021969,2]
[339691105,1727869853571,-1453.71,0.00021969,2]
[339691107,1727869853581,-500.0,0.00021969,2]
[339691108,1727869853590,-583.37267816,0.00021969,2]
[339691110,1727869853599,-500.0,0.00021969,2]
[339691112,1727869853610,-150.0,0.00021969,2]
[339691113,1727869853620,-500.0,0.00021969,2]
[339691115,1727869853629,-1753.24,0.00021969,2]
[339691116,1727869853639,-750.98,0.00021969,2]
[339691118,1727869853649,-300.98969621,0.00021969,2]
[339691119,1727869853658,-2203.62,0.00021969,2]
[339691121,1727869853668,-983.09,0.00021969,2]
[339691123,1727869853677,-151.0,0.00021969,7]
[339691124,1727869853687,-659.66,0.00021969,2]
[339691126,1727869853696,-500.0,0.00021969,2]
[339691128,1727869853708,-931.83,0.00021969,2]
[339691129,1727869853717,-2897.78,0.00021969,2]
[339691131,1727869853727,-500.0,0.0002197,2]
[339691132,1727869853736,-500.0,0.0002197,2]
[339691134,1727869853745,-500.0,0.0002197,2]
[339691136,1727869853756,-500.0,0.0002197,2]
[339691137,1727869853767,-500.0,0.00021973,2]
[339691139,1727869853777,-501.51745225,0.00021973,2]
[339691141,1727869853787,-500.0,0.00021973,2]
[339691142,1727869853796,-232.76394316,0.00021973,2]
[339691144,1727869853806,-211.99856331,0.00021973,2]
[339691145,1727869853816,-500.0,0.0002198,2]
[339691147,1727869853826,-500.0,0.00021989,2]
[339691149,1727869853835,-500.0,0.00021989,2]
[339691150,1727869853844,-500.0,0.00021989,2]
[339691152,1727869853854,-102119.52938279,0.0002199,15]
[339691154,1727869853863,-151.0,0.0002199,7]
[339691155,1727869853873,-151.0,0.0002199,7]
[339691157,1727869853883,-158553.737362,0.0002199,3]
[339691158,1727869853892,-151.0,0.0002199,7]
[339691160,1727869853902,-151.0,0.00021991,7]
[339691162,1727869853913,-52851.2457874,0.00021991,3]
[339691163,1727869853924,-1101.45442569,0.00021997,2]
[339691165,1727869853934,-500.0,0.00021999,2]
[339691167,1727869853944,-500.87563145,0.00021999,2]
[339691169,1727869853955,-500.0,0.00021999,2]
[339691171,1727869853965,-500.0,0.00021999,2]
[339691173,1727869853975,-309522.11811581,0.00022,5]
[339691175,1727869853984,-500.4907526,0.00022,2]
[339691177,1727869853995,-872.59957875,0.00022,30]
[339691179,1727869854005,-3147.50197193,0.00022,2]
[339691181,1727869854014,-247.82989633,0.00022,2]
[339691183,1727869854024,-200.0,0.00022,2]
[339691184,1727869854033,-2000.0,0.00022,7]
[339691185,1727869854043,-1106.45,0.00022,5]
[339691186,1727869854052,-2000.0,0.00022,2]
[339691187,1727869854062,-200.0,0.00022,2]
[339691188,1727869854071,-151.0,0.00022,7]
[339691189,1727869854082,-200.0,0.00022,2]
[339691190,1727869854091,-151.0,0.00022,7]
[339691191,1727869854101,-2000.0,0.00022,2]
[339691192,1727869854111,-200.0,0.00022,2]
[339691193,1727869854120,-164.66088,0.00022,15]
[339691194,1727869854130,-221.052862,0.00022,15]
[339691195,1727869854139,-2024.0384504,0.00022001,2]
[339691196,1727869854149,-7279.8155011,0.00022001,2]
[339691197,1727869854159,-46587.6425173,0.00022001,2]
[339691198,1727869854168,-9443.0372261,0.00022001,2]
[339691199,1727869854177,-2102.0929026,0.00022001,2]
[339691200,1727869854187,-5693.0600117,0.00022001,2]
[339691201,1727869854196,-730.913132,0.00022001,2]
[339691202,1727869854206,-150.0,0.00022004,4]
[339691203,1727869854216,-738.4264292,0.00022016,2]
[339691204,1727869854225,-3009.7804934,0.00022016,2]
[339691205,1727869854235,-150.0,0.0002203,4]
[339691206,1727869854245,-150.0,0.00022042,4]
[339691208,1727869854255,-150.0,0.00022076,4]
[339691209,1727869854266,-441.17474559,0.00022133,2]
[339691210,1727869854275,-150.0,0.00022149,4]
[339691212,1727869854285,-167.0,0.00022165,2]
[339691214,1727869854294,-500.0,0.00022173,2]
[339691216,1727869854303,-150.0,0.00022174,4]
[339691218,1727869854313,-4138.73102975,0.00022178,2]
[339691220,1727869854322,-52851.2457874,0.00022181,3]
[339691222,1727869854331,-211.788692,0.00022181,7]
[339691224,1727869854341,-564.12545713,0.0002219,2]
[339691226,1727869854350,-500.0,0.0002219,2]
[339691228,1727869854360,-500.0,0.0002219,2]
[339691230,1727869854370,-500.0,0.00022191,2]
[339691232,1727869854380,-500.0,0.00022191,2]
[339691234,1727869854390,-500.0,0.00022191,2]
[339691236,1727869854399,-500.0,0.00022191,2]
[339691238,1727869854409,-500.0,0.00022191,2]
[339691240,1727869854418,-500.0,0.00022191,2]
[339691242,1727869854428,-500.0,0.00022191,2]
[339691244,1727869854437,-500.0,0.00022191,2]
[339691246,1727869854447,-500.0,0.00022191,2]
[339691248,1727869854461,-500.0,0.00022191,2]
[339691250,1727869854470,-500.0,0.00022191,2]
[339691252,1727869854480,-500.0,0.00022191,2]
[339691254,1727869854490,-500.0,0.00022191,2]
[339691256,1727869854499,-500.0,0.00022191,2]
[339691257,1727869854508,-1585.55,0.00022191,2]
[339691260,1727869854518,-500.0,0.00022191,2]
[339691261,1727869854528,-500.0,0.00022191,2]
[339691263,1727869854538,-668.91,0.00022191,2]
[339691265,1727869854547,-500.0,0.00022191,2]
[339691267,1727869854557,-500.0,0.00022191,2]
[339691269,1727869854566,-985.05,0.00022191,2]
[339691271,1727869854577,-500.0,0.00022191,2]
[339691273,1727869854587,-500.0,0.00022191,2]
[339691275,1727869854597,-1229.26,0.00022191,2]
[339691277,1727869854608,-500.0,0.00022191,2]
[339691279,1727869854618,-500.0,0.00022191,2]
[339691281,1727869854627,-500.0,0.00022191,2]
[339691283,1727869854637,-500.0,0.00022191,2]
[339691285,1727869854646,-500.0,0.00022191,2]
[339691286,1727869854656,-500.0,0.00022191,2]
[339691288,1727869854666,-712.89,0.00022191,2]
[339691290,1727869854675,-500.0,0.00022191,2]
[339691292,1727869854685,-500.0,0.00022191,2]
[339691294,1727869854694,-500.0,0.00022191,2]
[339691296,1727869854704,-500.0,0.00022191,2]
[339691298,1727869854720,-500.0,0.00022191,2]
[339691300,1727869854729,-2666.71,0.00022191,2]
[339691302,1727869854738,-500.0,0.00022191,2]
[339691304,1727869854748,-500.0,0.00022191,2]
[339691306,1727869854758,-500.0,0.00022191,2]
[339691308,1727869854768,-665.33,0.00022191,2]
[339691310,1727869854777,-500.0,0.00022191,2]
[339691312,1727869854787,-500.0,0.00022191,2]
[339691314,1727869854797,-1052.32,0.00022191,2]
[339691316,1727869854809,-500.0,0.00022191,2]
[339691318,1727869854819,-500.0,0.00022191,2]
[339691320,1727869854830,-500.0,0.00022191,2]
[339691322,1727869854839,-1327.79,0.00022191,2]
[339691324,1727869854849,-500.0,0.00022191,2]
[339691326,1727869854858,-500.0,0.00022191,2]
[339691328,1727869854868,-884.71,0.00022191,2]
[339691330,1727869854877,-541.83956562,0.00022191,2]
[339691332,1727869854887,-500.0,0.00022191,2]
[339691334,1727869854896,-810.58,0.00022191,2]
[339691336,1727869854906,-500.0,0.00022191,2]
[339691338,1727869854919,-500.0,0.00022191,2]
[339691340,1727869854929,-500.0,0.00022191,2]
[339691342,1727869854938,-500.0,0.00022191,2]
[339691344,1727869854947,-500.0,0.00022191,2]
[339691346,1727869854957,-500.0,0.00022191,2]
[339691348,1727869854968,-500.0,0.00022191,2]
[339691349,1727869854977,-500.0,0.00022191,2]
[339691351,1727869854987,-500.0,0.00022191,2]
[339691353,1727869854998,-1859.63,0.00022191,2]
[339691356,1727869855009,-680.9,0.00022191,2]
[339691358,1727869855019,-500.0,0.00022191,2]
[339691360,1727869855029,-500.0,0.00022191,2]
[339691361,1727869855038,-812.04,0.00022191,2]
[339691363,1727869855048,-755.7,0.00022191,2]
[339691365,1727869855058,-500.0,0.00022191,2]
[339691367,1727869855067,-500.0,0.00022191,2]
[339691369,1727869855077,-500.0,0.00022191,2]
[339691371,1727869855086,-183.81044546,0.00022191,2]
[339691373,1727869855096,-669.31,0.00022191,2]
[339691375,1727869855106,-500.0,0.00022191,2]
[339691377,1727869855116,-618.42,0.00022191,2]
[339691379,1727869855125,-500.0,0.00022191,2]
[339691381,1727869855134,-510.21,0.00022191,2]
[339691383,1727869855144,-500.0,0.00022191,2]
[339691385,1727869855153,-967.09,0.00022191,2]
[339691387,1727869855163,-646.61,0.00022191,2]
[339691389,1727869855172,-500.0,0.00022191,2]
[339691391,1727869855181,-1017.63,0.00022191,2]
[339691393,1727869855191,-1249.39,0.00022191,2]
[339691395,1727869855200,-1412.81,0.00022191,2]
[339691396,1727869855210,-500.0,0.00022191,2]
[339691398,1727869855219,-500.0,0.00022191,2]
[339691400,1727869855228,-500.0,0.00022191,2]
[339691402,1727869855238,-718.87,0.00022191,2]
[339691404,1727869855247,-500.0,0.00022191,2]
[339691405,1727869855257,-855.4,0.00022191,2]
[339691407,1727869855266,-500.0,0.00022191,2]
[339691409,1727869855275,-500.0,0.00022191,2]
[339691411,1727869855285,-1157.52,0.00022191,2]
[339691413,1727869855295,-500.73594341,0.00022191,2]